[Event "Lliga Catalana DH 2023"]
[Site "Catalonia"]
[Date "2023.03.25"]
[Round "10.4"]
[White "Valenzuela Gomez, Fernando"]
[Black "Gonzalez Garcia, Jose"]
[Result "1/2-1/2"]
[ECO "B45"]
[WhiteElo "2396"]
[BlackElo "2450"]
[Annotator "TA"]
[PlyCount "82"]
[EventDate "2023.01.24"]
[EventType "team-tourn"]
[EventCountry "ESP"]
[SourceTitle "playchess.com"]
[Source "ChessBase"]
[SourceQuality "1"]
[TimeControl "40/5400+30:1800+30"]

{[%evp 11,82,0,6,0,0,0,0,13,7,-3,0,-33,-29,-40,7,25,29,14,0,0,0,0,0,-37,-38,-75,-87,-98,-89,-86,-87,-90,-64,-69,-64,-58,-58,-116,-97,-120,-114,-146,-150,-298,-263,-265,-264,-256,-272,-284,-270,-287,-294,-345,-344,-328,-312,-340,-332,-348,-265,-423,0,0,0,0,0,0,0,0,0,0,0]} 1. e4 c5 2. Nf3 e6 3. d4 cxd4 4. Nxd4 Nf6 5. Nc3 Nc6 6. a3 Be7 7. Nxc6 {7.Be3 is the modern continuation. B45: Sicilian Four Knights.} bxc6 8. e5 Nd5 9. Qg4 Kf8 (9... Nxc3 10. Qxg7 Rf8 11. bxc3 $16) 10. Bd2 h5 {[#]} 11. Qg3 $146 ({Predecessor:} 11. Qe4 Rb8 12. b3 f5 13. exf6 Bxf6 14. Qf3 Kg8 15. Rd1 Nxc3 16. Bxc3 d5 17. Be2 {½-½ Caruana,F (2820)-Rapport,R (2763) Paris GCT Blitz 2021 (3)}) 11... Rb8 12. Bd3 Bh4 (12... Rxb2 $15 13. Nxd5 cxd5) 13. Qf3 $11 Bg5 14. Ne4 (14. Bg6 $2 Bxd2+ 15. Kd1 Nf4 16. Bxf7 Bxc3 17. bxc3 d6 18. Qxf4 dxe5+ 19. Qd2 Kxf7 $19) (14. Be3 {simplifies} Nxe3 15. fxe3 f5 16. O-O) 14... Bxd2+ 15. Kxd2 Rxb2 16. Kc1 Rb8 {Threatens to win with ...Qb6.} 17. c4 {[#]} Qa5 18. Bc2 {[#]} ({Reject} 18. cxd5 cxd5 19. Rb1 dxe4 20. Qxe4 Rxb1+ 21. Kxb1 Qxa3 $17) (18. Kc2 Ne7) 18... Ne7 (18... Qb6 $2 19. Rb1 (19. cxd5 Qb2+ 20. Kd2 cxd5 $18) 19... Qc7 20. Rxb8 Qxb8 21. Nd6 $18) 19. Qc3 Qxc3 20. Nxc3 f6 21. f4 Nf5 {White must now prevent ...Ne3.} 22. Bxf5 exf5 23. exf6 gxf6 24. c5 (24. Kc2 $15) 24... Rg8 $17 25. Ra2 Ba6 {Hoping for ...Rb3.} 26. Rd2 Bc4 27. Rxd7 (27. Kc2 $17) 27... Rxg2 28. Rd4 Bb3 {...Rc2+ would be deadly.} 29. Rd2 {Dodges Rc2+} Rxd2 30. Kxd2 $19 {[%mdl 4096] Endgame KRB-KRN} Rd8+ 31. Ke3 Bc2 {Strongly threatening ...Rd3+.} 32. Ne2 Rd3+ 33. Kf2 Rxa3 34. Rc1 Be4 35. Rd1 Rf3+ 36. Ke1 (36. Kg1 $142) 36... Bd3 $2 (36... h4 $19 37. Rd2 Rh3) 37. Nd4 $11 {[%csl LRc6,LRf3] The position is equal.} Rf1+ (37... Rxf4 $2 38. Ne6+ (38. Rxd3 Kf7 $18) 38... Ke8 39. Nxf4 $18) 38. Kd2 Rxd1+ 39. Kxd1 Be4 {aiming for ...h4.} 40. h4 $1 Ke7 41. Kc1 Kd7 {Weighted Error Value: White=0.20 (precise) /Black=0.17 (very precise)} 1/2-1/2

[Event "Lliga Catalana DH 2023"]
[Site "Catalonia"]
[Date "2023.03.25"]
[Round "10.5"]
[White "Iermito, Sebastian"]
[Black "Martinez Fernandez, Adrian"]
[Result "0-1"]
[ECO "C07"]
[WhiteElo "2528"]
[BlackElo "2374"]
[Annotator "TA"]
[PlyCount "106"]
[EventDate "2023.01.24"]
[EventType "team-tourn"]
[EventCountry "ESP"]
[SourceTitle "playchess.com"]
[Source "ChessBase"]
[SourceQuality "1"]
[TimeControl "40/5400+30:1800+30"]

{[%evp 11,106,12,18,9,19,13,32,0,12,6,6,10,10,4,2,0,5,-60,0,0,0,0,4,0,0,-41,0,0,0,1,0,0,0,-41,-27,-123,-134,-121,-19,-66,-59,-74,-50,-671,-106,-112,-106,-106,-106,-452,-439,-458,-472,-472,-460,-452,-447,-452,-455,-503,-497,-502,-487,-481,-481,-550,-508,-579,-484,-506,-463,-470,-477,-430,-389,-454,-439,-597,-504,-1156,-755,-730,-739,-2302,-2238,-2597,-2062,-1398,-804,-711,-655,-1008,-965,-11971,-1008,-2547,-4390]} 1. e4 e6 2. d4 d5 3. Nd2 c5 4. Ngf3 {[%cal Bg1f3,Bf3d4,Bd4b5,Bb5c3][%mdl 32]} cxd4 5. Nxd4 Nf6 6. exd5 Qxd5 7. Nb5 {C07: French Tarrasch: 3...c5, 4 Ngf3 and 4 exd5 Qxd5.} Na6 {Dodges Nc7+} 8. Nc3 Qd6 9. Qe2 {White is slightly better.} Bd7 10. a3 Qc7 11. Nc4 {[#]} Bc5 $146 ({Predecessor:} 11... Be7 12. Qe5 O-O 13. Bf4 Ne8 14. O-O-O Rd8 15. Qe3 Qc8 16. Qxa7 Bc5 17. Nb6 Qc6 18. Bxa6 bxa6 {1-0 Abrahamyan,T (2327)-Checa,N (2400) Saint Louis Winter GM 2017 (7)}) 12. Bg5 {With the idea Bxf6.} Bc6 13. O-O-O O-O 14. b4 {[#]} ({White should try} 14. Bxf6 $11 Qf4+ 15. Kb1 Qxf6 16. Ne5) 14... Nxb4 15. axb4 $11 Bxb4 16. Na2 Bc5 17. Bxf6 Qf4+ 18. Rd2 gxf6 19. Qh5 Be7 {This pair of bishops is nice.} 20. g3 Qc7 21. Bd3 {[%csl Gd3][%cal Rh5h7]} f5 22. Rg1 {g4 is the strong threat.} Kh8 {[%mdl 1024] aiming for ...Bd5. Black has compensation.} 23. g4 (23. Re1 $11 {remains equal.}) 23... Rg8 $1 $17 {...Bd5 would be deadly.} (23... Bd5 24. gxf5 (24. Qh6 $2 Bxc4 25. gxf5 Rg8 $19) 24... Bxc4 25. f6 Bxd3 26. fxe7 Qxe7 27. Rxd3 $18 (27. cxd3 Rac8+ 28. Kb1 Qf6 $16)) 24. Rg3 {[#]} (24. Qxf7 $2 Ba3+ 25. Nxa3 Qxf7 $19) 24... Rg5 (24... Bd5 $1 $17 {[%cal Rd5c4]} 25. gxf5 (25. Rh3 $2 Rg7 $19) 25... Bxc4) 25. Qh6 (25. Qxf7 $2 Ba3+ 26. Nxa3 Qxf7 $19) (25. Qh3 $11 Be4 26. Qf1) 25... Rg6 $15 26. Qh3 b5 (26... Bd5 $5 {[%cal Rd5c4]} 27. gxf5 exf5 28. Bxf5 Qxc4 29. Bxg6 fxg6 30. Rxg6 Rc8 $15) 27. Nb2 {[%mdl 8192]} (27. gxf5 $15 Rxg3 28. Qxg3 Qxg3 29. hxg3 bxc4 30. Bxc4) 27... Bg5 $2 (27... Qa5 $19 {and Black stays clearly on top.} 28. Kb1 Qxd2 29. gxf5 Rh6 {[%mdl 64] Skewer}) 28. gxf5 $17 Bxd2+ 29. Kxd2 Qf4+ 30. Kd1 $2 {[%mdl 8192] [#]} (30. Re3 $17 {is more resistant.} Qxf2+ 31. Kc1) 30... Rh6 $1 $19 {[%mdl 64] Skewer} 31. Qg4 Qxg4+ {[%mdl 64] Remove Defender, Deflection} (31... Qxf2 $2 32. Qg7#) 32. Rxg4 Bf3+ (32... Rxh2 33. Ke1 $17) 33. Be2 Bxg4 34. Bxg4 exf5 (34... Rxh2 $2 {perishes.} 35. fxe6 h5 36. Bf3 Rd8+ 37. Nd3 $19) 35. Bxf5 Rf6 36. Be4 Rd8+ 37. Nd3 Rxf2 38. Nc3 a6 39. h3 Rh2 40. Bb7 Rd6 41. Ne4 Rb6 42. Bd5 f5 (42... Rxh3 $2 {is the wrong capture.} 43. Bxf7 a5 44. Bd5 $19) 43. Ng3 Rd6 {Black is clearly winning.} (43... Rxh3 $2 {too greedy.} 44. Nxf5 Rf6 45. Be4 $19) 44. Nf4 Rf2 45. Ngh5 (45. Nge2 $142) 45... b4 {[%cal Bb5b4,Bb4b3,Bb3c2][%mdl 32] White must now prevent ...a5.} 46. Kc1 a5 {[%cal Ba6a5,Ba5a4][%mdl 32] Threatens to win with ...a4.} 47. Kb2 a4 48. Nd3 Rxd5 49. Nxf2 Rd2 50. Nd3 b3 51. Ka3 bxc2 52. Nhf4 {[#]} Rf2 $3 {[%cal Of2f4][%mdl 576] ( -> ...Rxf4!). Deflection, Promotion} 53. Kb2 {[#]} (53. Ne6 Rf3) 53... a3+ $1 {[%mdl 64] Promotion. An entertaining game by Martinez Fernandez.   Weighted Error Value: White=0.62/Black=0.40} 0-1

[Event "Lliga Catalana DH 2023"]
[Site "Catalonia"]
[Date "2023.03.25"]
[Round "10.5"]
[White "Rizouk, Aimen"]
[Black "Garcia Ramos, Daniel"]
[Result "0-1"]
[ECO "B15"]
[WhiteElo "2454"]
[BlackElo "2426"]
[Annotator "TA"]
[PlyCount "56"]
[EventDate "2023.01.24"]
[EventType "team-tourn"]
[EventCountry "ESP"]
[SourceTitle "playchess.com"]
[Source "ChessBase"]
[SourceQuality "1"]
[TimeControl "40/5400+30:1800+30"]

{[%evp 10,56,32,8,8,-10,-8,0,0,0,0,0,0,-17,-16,-14,0,0,0,0,-3,0,27,0,24,28,29,-47,-39,-54,-45,-46,-52,-55,-48,-50,-47,-47,-52,-54,-60,-54,-54,-29986,-29988,-29988,-29989,-29995,-689]} 1. e4 {[%emt 0:00:03]} c6 {[%emt 0:02:09]} 2. d4 {[%emt 0:00:08]} d5 {[%emt 0:00:13]} 3. Nc3 {[%emt 0:00:06]} dxe4 {[%emt 0:00:15]} 4. Nxe4 {[%emt 0:00:05]} Nf6 {[%emt 0:00:25]} 5. Nxf6+ {[%emt 0:00:09]} exf6 {[%emt 0:00:08]} 6. Be2 {[%emt 0:00:14]} Bd6 {[%emt 0:01:05] B15: Caro-Kann: 3 Nc3: 3...g6 and 3...dxe4 4 Nxe4 Nf6 5 Nxf6+ exf6.} 7. Bf3 {[%emt 0:00:19]} O-O {[%emt 0:00:56]} 8. Ne2 {[%emt 0:00:11]} Re8 {[%emt 0:01:24] The position is equal.} 9. O-O {[%emt 0:02:15]} Nd7 {[%emt 0:02:01][%cal Bb8d7,Bd7f8,Bf8e6][%mdl 32]} 10. c4 {[%emt 0:00:37][%cal Bc2c4,Bc4c5][%mdl 32]} Nf8 {[%emt 0:00:55]} 11. c5 {[%emt 0:01:18]} Bc7 {[%emt 0:02:10]} 12. Nc3 {[%emt 0:00:13] [#]} Ne6 $146 {[%emt 0:05:14]} ({Predecessor:} 12... Ng6 13. d5 cxd5 14. Nxd5 Ne5 15. Be3 Be6 16. Nxc7 Qxc7 17. Be2 Rad8 18. Qa4 Bd7 19. Qxa7 {0-1 Sumaneev,D (2450)-Silva,K (2160) Titled Tuesday intern op 27th Apr blitz 2021 (5)}) 13. Be3 {[%emt 0:37:34]} f5 {[%emt 0:07:08] Threatens to win with ...f4.} 14. d5 {[%emt 0:01:21]} cxd5 {[%emt 0:00:54]} 15. Nxd5 {[%emt 0:00:46]} Be5 {[%emt 0:06:37][%cal Oc8d7]} (15... Bd7 $5 {[%cal Rf5f4]}) 16. Qc1 {[%emt 0:05:32]} g5 {[%emt 0:01:40] And now ...g4 would win.} (16... Qh4 17. g3 Qd8 18. Bg2 $14) 17. Rd1 {[%emt 0:04:40] c6 would be deadly.} Bd7 {[%emt 0:15:50]} 18. g3 {[%emt 0:12:39] [#]} (18. Nb4 $11 Qf6 19. Qc2 (19. Rxd7 Bxb2 20. Qb1 f4 $11)) 18... f4 $1 $15 {[%emt 0:12:59][%mdl 64] Deflection} 19. gxf4 {[%emt 0:01:11]} gxf4 {[%emt 0:00:09]} 20. Nxf4 {[%emt 0:02:17]} Qh4 $1 {[%emt 0:01:37][%cal Re6f4]} 21. Rxd7 {[%emt 0:01:27]} Nxf4 {[%emt 0:00:33]} 22. Bxf4 {[%emt 0:09:05]} (22. Bxb7 $2 Ne2+ 23. Kf1 Nxc1 $19) 22... Bxf4 {[%emt 0:00:07]} 23. Qd1 {[%emt 0:00:03]} Rad8 {[%emt 0:09:00]} (23... Qxh2+ 24. Kf1 Re5 25. Rd8+ Rxd8 26. Qxd8+ Kg7 27. Qd4 $11) 24. Rxd8 {[%emt 0:06:43]} (24. h3 $2 Qxh3 25. Bg2 (25. Rxd8 Bh2+ 26. Kh1 Bg3+ {[%mdl 64] Discovered Attack} 27. Kg1 Qh2+ 28. Kf1 Qxf2#) 25... Qxd7 $19) 24... Rxd8 {[%emt 0:00:12]} 25. Qe1 $1 {[%emt 0:01:24]} Rd2 $40 {[%emt 0:05:21][%mdl 128] Black has some attack.} 26. Rd1 $2 {[%emt 0:02:10][%mdl 8192] [#]} (26. Kf1 $15) 26... Qxh2+ {[%emt 0:00:17] Black mates.} 27. Kf1 {[%emt 0:00:04]} Qh3+ {[%emt 0:00:04]} ({Inferior is} 27... Rxb2 28. Rd8+ Kg7 29. Rd5 Qh3+ 30. Bg2 $17) 28. Kg1 {[%emt 0:00:46]} Bh2+ {[%emt 0:00:07] Weighted Error Value: White=0.41/Black=0.03 (flawless)} (28... Rxb2 $2 29. Rd8+ Kg7 30. Qc3+ f6 31. Rg8+ {[%mdl 64] Decoy} (31. Qxb2 $2 {loses.} Bh2+ 32. Kh1 Be5+ 33. Kg1 Bxb2 $19) 31... Kxg8 32. Bd5+ {[%mdl 64] Discovered Attack} (32. Qxb2 {is a self mate.} Bh2+ 33. Kh1 Be5+ 34. Kg1 Bxb2 35. Bd5+ Kg7 36. Bg2 Qg4 37. c6 bxc6 38. Kh2 Qh4+ 39. Kg1 Bd4 40. a3 Qxf2+ 41. Kh2 Be5+ 42. Kh1 Qe1+) 32... Kg7 33. Qxh3 $18) 0-1

[Event "Lliga Catalana DH 2023"]
[Site "Catalonia"]
[Date "2023.03.25"]
[Round "10.6"]
[White "Moskalenko, Viktor"]
[Black "Pardo Simon, David"]
[Result "1/2-1/2"]
[ECO "D31"]
[WhiteElo "2448"]
[BlackElo "2455"]
[Annotator "TA"]
[PlyCount "54"]
[EventDate "2023.01.24"]
[EventType "team-tourn"]
[EventCountry "ESP"]
[SourceTitle "playchess.com"]
[Source "ChessBase"]
[SourceQuality "1"]
[TimeControl "40/5400+30:1800+30"]

{[%evp 9,54,20,26,24,57,0,3,1,12,0,0,0,0,-23,-25,-20,-12,-28,-38,-44,-47,-91,-18,-31,-52,-82,0,16,22,9,35,2,0,0,14,-23,146,-31,-29,-52,-53,-56,-55,-45,120,90,144]} 1. c4 {[%emt 0:01:41]} e6 {[%emt 0:02:13]} 2. Nc3 {[%emt 0:00:17]} d5 {[%emt 0:00:55]} 3. d4 {[%emt 0:00:09]} a6 {[%emt 0:00:20]} 4. cxd5 {[%emt 0:06:35]} exd5 {[%emt 0:00:08]} 5. Nf3 {[%emt 0:00:25]} c6 {[%emt 0:02:08]} 6. Bf4 {[%emt 0:01:41] D31: Queen's Gambit Declined: Semi-Slav without ...Nf6 (+ Marshall Gambit and Noteboom) and Exchange Variation lines without ...Nf6.} Bd6 {[%emt 0:02:14]} 7. Bg3 {[%emt 0:00:05]} (7. Bxd6 $14 Qxd6 8. e4) 7... Ne7 $11 {[%emt 0:03:54]} 8. e3 {[%emt 0:01:32] The position is equal.} Nf5 {[%emt 0:10:50]} 9. Bd3 {[%emt 0:05:11]} Nxg3 {[%emt 0:02:01]} 10. hxg3 {[%emt 0:00:09]} Nd7 {[%emt 0:00:03]} 11. Qc2 {[%emt 0:06:09]} (11. Bxh7 $2 {perishes.} Nf8 12. Qd3 g6 $19) ({Much worse is} 11. Rxh7 Rxh7 12. Bxh7 g6 $17) 11... Nf6 {[%emt 0:04:17]} 12. O-O-O {[%emt 0:01:16][%cal Rd3h7]} h6 {[%emt 0:03:35] [#]} 13. Kb1 $146 {[%emt 0:01:06]} ({Predecessor:} 13. Nd2 Be6 14. Ne2 Qb6 15. Nb3 O-O-O 16. Nc5 Kb8 17. Kb1 Bc8 18. Rc1 Rhe8 19. Qa4 Ng4 20. Rhf1 Nh2 21. Rfd1 Ng4 22. Rf1 Nh2 23. Rfd1 Ng4 24. Rf1 {½-½ Olsen,F (2391)-Kraus,T (2479) Ceske Budejovice 2019 (1)}) 13... O-O {[%emt 0:07:52]} 14. Nd2 {[%emt 0:29:55]} Re8 {[%emt 0:02:25]} 15. Nf1 {[%emt 0:01:04]} b6 {[%emt 0:11:30]} (15... a5 $1 $17) 16. f3 {[%emt 0:00:58]} c5 {[%emt 0:07:54]} 17. g4 {[%emt 0:07:18][%cal Og4g5] [#]} cxd4 {[%emt 0:02:34]} (17... c4 $1 $17 {[%cal Rc4d3]} 18. Bf5 Bxf5 19. Qxf5 Qc8) 18. exd4 {[%emt 0:00:15][%cal Og4g5]} Qc7 {[%emt 0:08:46]} 19. Qf2 {[%emt 0:03:18]} b5 {[%emt 0:02:39]} 20. g3 {[%emt 0:09:14][%cal Og4g5]} (20. Ne3 $5 {[%cal Rg4g5]}) 20... b4 $1 $36 {[%emt 0:03:01][%mdl 2048] Black has the initiative.} 21. Ne2 {[%emt 0:03:37][%cal Og4g5]} b3 {[%emt 0:01:24]} 22. axb3 {[%emt 0:01:29][%cal Og4g5] g5! is the strong threat.} Bd7 $2 {[%emt 0:02:32] [#]} (22... Rb8 $11) 23. Nc3 $2 {[%emt 0:07:38]} ({White has to play} 23. g5 $1 $16 {[%cal Rg5f6]} hxg5 24. Qh2) 23... Rab8 $1 $15 {[%emt 0:02:18]} 24. Bc2 {[%emt 0:02:12][%cal Og4g5]} ({Wrong is} 24. Ne3 $2 Bxg3 25. Qd2 Rxb3 26. Nexd5 Nxd5 27. Nxd5 Qd6 $19) 24... Bb4 $1 {[%emt 0:03:08]} 25. Na2 {[%emt 0:00:26][%cal Og4g5] Black must now prevent g5!} a5 $1 {[%emt 0:02:54][%cal Oa5a4] Threatens to win with ...a4!} 26. g5 $1 {[%emt 0:04:53]} hxg5 {[%emt 0:00:01]} (26... a4 $1 $15 {keeps the upper hand.}) 27. Ne3 $16 {[%emt 0:01:30]} Be6 {[%emt 0:14:31] Weighted Error Value: White=0.23 (precise) /Black=0.28 (precise)} (27... Rxe3 $2 28. Qxe3 Qxg3 29. Nxb4 $16 {[%mdl 64] Remove Defender}) ({Black should play} 27... Kf8) 1/2-1/2

[Event "Lliga Catalana DH 2023"]
[Site "Catalonia"]
[Date "2023.03.25"]
[Round "10.6"]
[White "Alcala Gonzalez, Cesar"]
[Black "Matnadze Bujiashvili, Ann"]
[Result "0-1"]
[ECO "D36"]
[WhiteElo "2262"]
[BlackElo "2392"]
[Annotator "TA"]
[PlyCount "146"]
[EventDate "2023.01.24"]
[EventType "team-tourn"]
[EventCountry "ESP"]
[SourceTitle "playchess.com"]
[Source "ChessBase"]
[SourceQuality "1"]
[TimeControl "40/5400+30:1800+30"]

{[%evp 20,146,22,6,29,27,55,-14,-14,-23,-7,-22,0,-12,-4,-10,-8,0,0,0,0,-3,-3,-3,-3,0,0,-31,-21,-31,-34,-57,0,0,0,0,3,2,32,0,0,0,1,-20,-7,-7,-4,-5,-5,-6,-6,-9,-8,-11,0,-10,-6,-85,-96,-78,-88,-88,-92,-87,-84,-226,-226,-226,-228,-284,-273,-267,-259,-267,-252,-297,-297,-315,-315,-234,-3,-3,-3,-3,-3,-3,-3,-3,-3,-3,-3,-3,-3,-3,-3,-3,-3,-3,-3,-3,-3,-3,-3,-3,-3,-3,-3,-234,-3,-3,-3,-205,-8,-207,-215,-215,0,-29975,-29976,-29977,-29978,-29978,-29979,-29980,-29981,-29981,-29982,-29982,-29982]} 1. d4 Nf6 2. c4 e6 3. Nc3 d5 4. cxd5 exd5 5. Bg5 c6 6. Qc2 Be7 7. e3 Nbd7 {[%cal Bb8d7,Bd7f8,Bf8e6][%mdl 32]} 8. Bd3 Nf8 9. Nge2 Ne6 10. Bh4 g6 11. O-O {[%cal Ob2b4]} Ng4 {D36: Queen's Gambit Declined: Exchange Variation: Main line (5 Bg5 c6 6 Qc2).} 12. Bxe7 {[#]} Qc7 $146 {[%csl Gg4][%cal Rc7h2] [#]} ({Predecessor:} 12... Qxe7 13. h3 Nh6 14. Rac1 O-O 15. a3 a6 16. Rfe1 Ng5 17. Nf4 Bf5 18. f3 Qd7 19. Qf2 Bxd3 20. Nxd3 {½-½ Navarro,P (2185)-Canabate Carmona,F (2115) Andalucia-ch 1991 (7)}) 13. f4 Qxe7 $11 {The position is equal.} 14. Qd2 Ng7 (14... Qh4 15. h3 Nh6 16. e4 $16) 15. Rae1 O-O (15... Qxe3+ $2 16. Qxe3+ Nxe3 17. Ng3 $18) (15... Nxe3 $2 16. Ng3 $18) 16. e4 dxe4 17. Nxe4 Bf5 18. N2c3 Qb4 19. Be2 {Strongly threatening Bxg4.} Bxe4 20. Bxg4 ({But not} 20. Nxe4 Qxd2 21. Nxd2 Ne3 $17) 20... Bf5 21. Bf3 Rad8 22. d5 cxd5 23. Bxd5 Be6 24. Rd1 {[%cal Be1d1,Bd1d4,Bd4e4,Be4e7][%mdl 32]} Bg4 25. Qd4 Qxd4+ (25... Qxb2 $15 26. Rd2 Qa3) 26. Rxd4 Nf5 27. Re4 Nd6 28. Re7 {[%cal Oh2h3]} Kg7 29. h3 Bc8 30. Rfe1 h5 31. h4 Nf5 32. Rc7 Rd7 $36 {[%mdl 2048] Black has some pressure.} 33. Rxd7 Bxd7 34. Kf2 b5 35. a3 a5 36. g3 Rd8 37. b4 Rc8 38. Ne4 (38. Rc1 $1 $11 {keeps the balance.}) 38... axb4 $17 39. axb4 Bc6 40. Rd1 Bxd5 41. Rxd5 {[%mdl 4096] Endgame KRN-KRN} Rc4 {[%csl LRb4,LRe4]} 42. Nd6 (42. Ng5 $17 {was called for.}) 42... Nxd6 $19 ({Weaker is} 42... Rxb4 43. Nxf5+ (43. Nxb5 $2 {loses.} Rb2+ 44. Ke1 Nxg3 $19) 43... gxf5 44. Rxf5 $11) 43. Rxd6 {[%cal Of4f5]} Rxb4 {KR-KR} 44. Rb6 Rb2+ 45. Kf3 Rb3+ 46. Kf2 b4 47. Kg2 Rb1 48. Kf2 b3 49. Kg2 b2 $2 ({Black should play} 49... Kf8 $19 {...Ke7 would be deadly.} 50. Rb5 b2) 50. Kh2 $11 Kf8 51. Rb7 $1 Ke8 52. Kg2 Kd8 53. Kh2 Kc8 54. Rb3 Kc7 55. Kg2 Kc6 56. Rb8 f6 57. Rb3 Kd5 58. Rb8 Kc4 59. Rc8+ Kd3 {[%cal Ob1g1]} 60. Rd8+ $1 Ke4 {[%cal Ob1g1]} 61. Rb8 Kf5 62. Rb5+ Kg4 63. Kh2 $2 (63. Rb4 $11 {and White has nothing to worry.}) 63... Rc1 $2 (63... Kf3 $19 {( -> ...Re1)} 64. Rb3+ Kf2) 64. Rxb2 Rc3 65. Rg2 $2 (65. Ra2 $11 {and White stays safe.}) 65... Ra3 $2 (65... f5 $1 $19 {...Ra3 is the strong threat.} 66. Rg1 Re3) 66. Rg1 $2 (66. Rc2 $11 {and White is okay.}) 66... Re3 $19 67. Rg2 {Dodges Re2} Kf3 $2 ({Black should try} 67... f5 $19 {Threatens to win with ...Rf3.} 68. Ra2 Rxg3) 68. Kh3 $2 {[%mdl 8192] [#]} (68. Rg1 $11) 68... Re1 $1 {Black mates.} 69. Kh2 Re2 70. Rxe2 Kxe2 71. Kg2 f5 72. Kg1 Kf3 73. Kh2 {[#]} Kf2 $1 {Weighted Error Value: White=0.13 (very precise) /Black=0.11 (very precise)} 0-1